fUSD/lending_fUSD_20240408
["ID","MTS","AMOUNT","RATE_DAILY","PERIOD"]
[321900102,1712598632303,-2444.26708576,0.00022998,2]
[321900106,1712598632316,-669.25583994,0.00022998,2]
[321900110,1712598632329,-658.17659555,0.00022998,2]
[321900112,1712598632341,-3502.05493329,0.00022998,2]
[321900115,1712598632354,-593.41505923,0.00022998,2]
[321900117,1712598633219,-262.6784885,0.00022998,2]
[321900118,1712598633260,-1272.24,0.00022998,2]
[321900119,1712598633295,-885.17524315,0.00022998,2]
[321900120,1712598633320,-221.60527405,0.00022998,2]
[321900121,1712598633331,-500.0,0.00022999,2]
[321900122,1712598633340,-77.36708251,0.00022999,2]
[321900123,1712598633352,-161.57245943,0.00022999,2]
[321900124,1712598633362,-2914.93,0.00022999,2]
[321900125,1712598633371,-923.49754057,0.00023,2]
[321900126,1712598633488,-580.86539022,0.00023,2]
[321900136,1712598637837,-714.09,0.00023,2]
[321900138,1712598637849,-13605.4478132,0.00023,2]
[321900161,1712598639531,-560.03999959,0.00023,2]
[321900162,1712598639594,-85927.18347305,0.00023,2]
[321900163,1712598639762,-1074.30964984,0.00023,2]
[321900164,1712598639774,-1274.03423667,0.00023,2]
[321900165,1712598639785,-30263.1473479,0.00023,2]
[321900166,1712598639805,-731.36,0.00023,2]
[321900176,1712598642748,-866.67264469,0.00023,2]
[321900188,1712598645570,-394.68667575,0.00022999,2]
[321900189,1712598645624,-105.31332425,0.00022999,2]
[321900190,1712598645634,-657.2724979,0.00023,2]
[321900191,1712598645645,-607.97134023,0.00023,2]
[321900192,1712598645680,-3642.85020046,0.00023,2]
[321900193,1712598645694,-31.25786568,0.00023,2]
[321900194,1712598645703,-600.0,0.00023,3]
[321900195,1712598645713,-152.32963547,0.00023004,2]
[321900196,1712598645723,-1000.0,0.00023116,2]
[321900197,1712598645733,-355.89890049,0.0002313,2]
[321900198,1712598645743,-355.89890049,0.00023135,2]
[321900199,1712598645752,-157.87760917,0.00023282,2]
[321900200,1712598645762,-1000.0,0.00023288,2]
[321900201,1712598645771,-171.09054901,0.00023309,2]
[321900202,1712598645782,-155.78441962,0.00023315,2]
[321900203,1712598645792,-247.6961188,0.00023377,2]
[321900204,1712598645802,-247.6961188,0.00023388,2]
[321900205,1712598645811,-1000.0,0.00023459,2]
[321900206,1712598645820,-7232.50381478,0.00023541,2]
[321900207,1712598645836,-1166.00200423,0.00023541,2]
[321900208,1712598645868,-729.0,0.00023541,2]
[321900209,1712598645900,-1110.14936885,0.00023541,2]
[321900210,1712598645910,-796.91743204,0.00023556,2]
[321900211,1712598645920,-676.44523265,0.0002363,2]
[321900212,1712598645931,-323.55476735,0.0002363,2]
[321900213,1712598645941,-699.06365187,0.00023801,2]
[321900214,1712598645952,-300.93634813,0.00023801,2]
[321900215,1712598645961,-141.0655454,0.00023833,2]
[321900216,1712598645974,-214.83335509,0.00023833,2]
[321900217,1712598645983,-355.89890049,0.00023837,2]
[321900218,1712598645992,-203.44103421,0.00023865,2]
[321900219,1712598646002,-1000.0,0.00023973,2]
[321900220,1712598646011,-131.87628629,0.00024144,2]
[321900244,1712598728336,25000.0,0.00028,20]
[321900247,1712598751125,25000.0,0.00028,20]
[321900249,1712598765734,213.67,0.00024329,15]
[321900251,1712598782941,25000.0,0.00028,20]
[321900255,1712598869214,29000.49146814,0.00015,2]
[321900256,1712598869240,47525.27944413,0.00015,2]
[321900263,1712598912973,-150.0,0.00031946,120]
[321900264,1712598913001,-150.0,0.00031969,120]
[321900265,1712598913025,-600.0,0.00032,120]
[321900266,1712598913075,-150.0,0.00032114,120]
[321900267,1712598913097,-150.0,0.0003212,120]
[321900268,1712598913125,-150.0,0.00032202,120]
[321900269,1712598913150,-150.0,0.00032295,120]
[321900270,1712598913174,-150.0,0.00032327,120]
[321900271,1712598913248,-150.0,0.00032702,120]
[321900272,1712598913270,-150.0,0.0003278,120]
[321900273,1712598913293,-150.0,0.00032829,120]
[321900274,1712598913343,-150.0,0.00032882,120]
[321900275,1712598913363,-150.0,0.00032887,120]
[321900283,1712599255201,200.31,0.00024329,15]
[321900288,1712599355502,552.39,0.00017692,2]
[321900289,1712599415522,155.0,0.00017692,2]
[321900290,1712599421763,179.26784372,0.00017692,2]
[321900291,1712599424063,385.22862698,0.00017692,2]
[321900292,1712599425067,2535.65468416,0.00013269,2]
[321900293,1712599425124,1371.45451449,0.00017692,2]
[321900294,1712599425494,155.0,0.00017692,2]
[321900295,1712599436582,156.92763871,0.00017692,2]
[321900296,1712599440579,680.22249649,0.00017692,2]
[321900297,1712599443705,179.13119942,0.00017692,2]
[321900298,1712599445659,156.01391937,0.00017692,2]
[321900299,1712599447126,1578.53652692,0.00013269,2]
[321900307,1712599554078,1033.74556397,0.00014,2]
[321900308,1712599554445,155.0,0.00016993,2]
[321900309,1712599554493,23722.53307253,0.00015,2]
[321900310,1712599554709,18763.7425748,0.00015,2]
[321900311,1712599556316,2776.87759788,0.00013269,2]
[321900312,1712599559289,951.45483861,0.00012606,2]
[321900313,1712599561160,150.0,0.00013269,2]
[321900314,1712599561181,150.0,0.00013269,2]
[321900315,1712599561202,150.0,0.00013269,2]
[321900316,1712599561223,150.0,0.00013269,2]
[321900317,1712599561245,63.30744562,0.00013269,2]
[321900318,1712599562919,150.0,0.00013269,2]
[321900319,1712599562939,150.0,0.00013269,2]
[321900320,1712599562960,150.0,0.00013269,2]
[321900321,1712599562980,150.0,0.00013269,2]
[321900322,1712599562999,150.0,0.00013269,2]
[321900323,1712599563019,150.0,0.00013269,2]
[321900324,1712599563039,150.0,0.00013269,2]
[321900325,1712599563059,150.0,0.00013269,2]
[321900326,1712599563078,150.0,0.00013269,2]
[321900327,1712599563099,150.0,0.00013269,2]
[321900328,1712599563119,150.0,0.00013269,2]
[321900329,1712599563139,150.0,0.00013269,2]
[321900330,1712599563162,150.0,0.00013269,2]
[321900331,1712599563184,17.42571277,0.00013269,2]
[321900332,1712599565517,150.0,0.00016993,2]
[321900333,1712599565645,6.20152961,0.00016993,2]
[321900334,1712599573781,150.0,0.00016993,2]
[321900335,1712599573804,33.23423643,0.00016993,2]
[321900336,1712599573875,116.76576357,0.00014,2]
[321900337,1712599573895,150.0,0.00014,2]
[321900338,1712599573918,150.0,0.00014,2]
[321900339,1712599573939,150.0,0.00014,2]
[321900340,1712599573960,150.0,0.00014,2]
[321900341,1712599573982,150.0,0.00014,2]
[321900342,1712599574006,150.0,0.00014,2]
[321900343,1712599574028,16.9798004,0.00014,2]
[321900344,1712599576440,150.0,0.00015,2]
[321900345,1712599576461,150.0,0.00015,2]
[321900346,1712599576482,150.0,0.00015,2]
[321900347,1712599576502,150.0,0.00015,2]
[321900348,1712599576522,150.0,0.00015,2]
[321900349,1712599576542,150.0,0.00015,2]
[321900350,1712599576562,150.0,0.00015,2]
[321900351,1712599576582,267.05916113,0.00015,2]
[321900352,1712599576604,15069.08111176,0.00015,2]
[321900353,1712599579695,150.0,0.00012606,2]
[321900354,1712599579718,357.83040702,0.00012606,2]
[321900355,1712599580904,1500.0,0.00013269,2]
[321900356,1712599587492,150.0,0.00016993,2]
[321900357,1712599587526,5.0,0.00016993,2]
[321900358,1712599595891,145.0,0.00014,2]
[321900359,1712599595913,72.416118,0.00014,2]
[321900360,1712599600901,77.583882,0.00013269,2]
[321900361,1712599600921,150.0,0.00013269,2]
[321900362,1712599600941,150.0,0.00013269,2]
[321900363,1712599600962,150.0,0.00013269,2]
[321900364,1712599600985,2322.416118,0.00013269,2]
[321900365,1712599616912,600.0,0.00013269,2]
[321900366,1712599639431,200.0,0.000209,7]
[321900397,1712599782997,187.79,0.00024329,15]
[321900412,1712599831725,-757.813062,0.00018205,2]
[321900413,1712599831735,-363.52295282,0.00018296,2]
[321900414,1712599831745,-1000.0,0.00018296,2]
[321900415,1712599831756,-748.27539944,0.00018297,2]
[321900416,1712599831765,-2050.20602077,0.00018297,2]
[321900417,1712599831776,-2462.68515412,0.00018298,2]
[321900418,1712599831786,-2713.56122024,0.000183,2]
[321900419,1712599831796,-150.0,0.00018394,2]
[321900420,1712599831805,-6212.9621,0.00018784,2]
[321900421,1712599831816,-375.77516328,0.00018881,2]
[321900422,1712599831827,-1968.4207604,0.00018881,2]
[321900423,1712599831839,-155.0,0.00018881,2]
[321900424,1712599831854,-1125.41559954,0.00018882,2]
[321900425,1712599831863,-8412.98518047,0.00018883,2]
[321900426,1712599831875,-1626.0,0.00019,2]
[321900427,1712599831885,-1153.84,0.0001902,2]
[321900428,1712599831894,-1000.0,0.00019308,2]
[321900429,1712599831904,-901.63,0.00019308,2]
[321900430,1712599831914,-151.55,0.00019328,2]
[321900431,1712599831924,-5217.63,0.00019336,2]
[321900432,1712599831936,-200.0,0.00019343,2]
[321900433,1712599831947,-999.99,0.00019343,2]
[321900434,1712599831958,-250.0,0.00019353,2]
[321900435,1712599831968,-151.55,0.00019395,2]
[321900436,1712599831977,-706.84,0.0001942,2]
[321900437,1712599831987,-151.55,0.00019462,2]
[321900438,1712599831997,-870.5,0.00019483,2]
[321900439,1712599832007,-23890.0,0.0001951,2]
[321900440,1712599832018,-6658.55,0.0001951,2]
[321900441,1712599832027,-151.55,0.00019529,2]
[321900442,1712599832039,-151.55,0.00019596,2]
[321900443,1712599832049,-151.76338005,0.00019642,2]
[321900444,1712599832059,-150.0,0.00019653,2]
[321900445,1712599832069,-151.55,0.00019664,2]
[321900446,1712599832079,-5006.58,0.00019724,2]
[321900447,1712599832089,-151.55,0.00019731,2]
[321900458,1712599832549,-200.0,0.00019767,2]
[321900459,1712599832559,-151.55,0.00019798,2]
[321900460,1712599832568,-151.55,0.00019865,2]
[321900461,1712599832578,-151.55,0.00019932,2]
[321900462,1712599832587,-3153.81871926,0.00019948,2]
[321900463,1712599832597,-552.39,0.00019956,2]
[321900464,1712599832609,-151.55,0.00019999,2]
[321900465,1712599832618,-22172.65186917,0.0002,2]
[321900466,1712599832629,-886.72514737,0.0002,2]
[321900467,1712599832639,-151.55,0.00020066,2]
[321900468,1712599832649,-151.55,0.00020134,2]
[321900469,1712599832658,-151.55,0.00020201,2]
[321900470,1712599832668,-446.05,0.00020231,2]
[321900471,1712599832678,-210.0,0.00020234,2]
[321900472,1712599832687,-151.55,0.00020268,2]
[321900473,1712599832697,-151.76338005,0.00020271,2]
[321900474,1712599832707,-150.99,0.00020271,2]
[321900475,1712599832716,-155.0,0.00020328,2]
[321900476,1712599832725,-8424.82,0.00020329,2]
[321900477,1712599832735,-151.55,0.00020335,2]
[321900478,1712599832744,-167.0,0.00020546,2]
[321900479,1712599832754,-261.60041953,0.00020643,2]
[321900480,1712599832763,-9324.3599174,0.00020645,2]
[321900481,1712599832773,-193.41,0.00020695,2]
[321900482,1712599832782,-441.05698349,0.000207,2]
[321900483,1712599832792,-177.26,0.00020702,2]
[321900484,1712599832802,-151.76338005,0.000209,2]
[321900485,1712599832811,-500.0,0.000209,2]
[321900486,1712599832820,-1302.75539248,0.000209,2]
[321900487,1712599832831,-550.45620889,0.000209,2]
[321900488,1712599832841,-9162.0359546,0.000209,2]
[321900489,1712599832854,-610.24616245,0.00020989,2]
[321900490,1712599832863,-201.76162213,0.00020989,2]
[321900491,1712599832873,-480.28,0.00020989,3]
[321900492,1712599832882,-597.67,0.00020998,2]
[321900493,1712599832892,-597.67,0.00020998,2]
[321900494,1712599832901,-597.67,0.00020998,2]
[321900495,1712599832910,-597.67,0.00020998,2]
[321900496,1712599832921,-597.67,0.00020998,2]
[321900497,1712599832930,-597.67,0.00020998,2]
[321900498,1712599832939,-597.67,0.00020998,2]
[321900499,1712599832949,-597.67,0.00020998,2]
[321900500,1712599832958,-597.67,0.00020998,2]
[321900501,1712599832968,-597.67,0.00020998,2]
[321900502,1712599832978,-597.67,0.00020998,2]
[321900503,1712599832987,-597.67,0.00020998,2]
[321900504,1712599832997,-597.67,0.00020998,2]
[321900505,1712599833006,-597.67,0.00020998,2]
[321900506,1712599833016,-597.67,0.00020998,2]
[321900507,1712599833026,-597.67,0.00020998,2]
[321900508,1712599833036,-597.67,0.00020998,2]
[321900509,1712599833046,-597.67,0.00020998,2]
[321900510,1712599833055,-597.67,0.00020998,2]
[321900511,1712599833065,-597.67,0.00020998,2]
[321900512,1712599833074,-597.67,0.00020998,2]
[321900513,1712599833084,-597.67,0.00020998,2]
[321900514,1712599833095,-597.67,0.00020998,2]
[321900515,1712599833105,-597.79,0.00020998,2]
[321900516,1712599833115,-359215.00862843,0.00020999,2]
[321900517,1712599833752,-789.29286824,0.00020999,2]
[321900518,1712599833847,-269.43979935,0.00020999,2]
[321900519,1712599833873,-2095.82997844,0.00020999,2]
[321900520,1712599833932,-5404.24892576,0.00020999,2]
[321900521,1712599833945,-417.27522362,0.00020999,2]
[321900522,1712599833964,-361.28696527,0.00020999,2]
[321900539,1712599837853,-31145.91705993,0.00020999,2]
[321900558,1712599838034,-718.83,0.00020999,2]
[321900628,1712599838519,-143628.92658104,0.00020999,2]
[321900858,1712599840713,-618.73499999,0.00020998,2]
[321900860,1712599840722,-496.47810264,0.00020999,2]
[321900863,1712599840733,-1077.0894906,0.00020999,2]
[321900865,1712599840744,-310.88518947,0.00020999,2]
[321900877,1712599841211,-7381.42088204,0.00020999,2]
[321900878,1712599841252,-1412.95051317,0.00020999,2]
[321900879,1712599841266,-1077.03660404,0.00020999,2]
[321900880,1712599841280,-9577.69929319,0.00020999,2]
[321900881,1712599841293,-8130.03170084,0.00020999,2]
[321900885,1712599842780,-1110.67857053,0.00020999,2]
[321900886,1712599842988,-230741.80659415,0.00020999,2]
[321900887,1712599842998,-115627.99578845,0.00021,2]
[321900888,1712599843008,-550.0,0.00021,3]
[321900889,1712599843017,-1000.0,0.00021096,2]
[321900890,1712599843026,-1429.63,0.0002137,2]
[321900891,1712599843035,-1000.0,0.00021721,2]
[321900892,1712599843044,-9162.03595452,0.00021752,2]
[321900893,1712599843228,-1302.75539241,0.00021763,2]
[321900895,1712599843246,-550.45620884,0.00021892,2]
[321900897,1712599843256,-250.0,0.00021918,2]
[321900898,1712599843265,-1000.0,0.00021918,2]
[321900900,1712599843275,-1000.0,0.0002198,2]
[321900902,1712599843285,-783.43698561,0.00022,2]
[321900904,1712599843294,-168.77069705,0.00022041,2]
[321900905,1712599843303,-1000.0,0.00022043,2]
[321900907,1712599843312,-152.73989449,0.00022049,2]
[321900909,1712599843322,-5217.63,0.00022075,2]
[321900911,1712599843332,-1000.0,0.00022106,2]
[321900912,1712599843341,-1000.0,0.00022168,2]
[321900914,1712599843350,-552.39,0.0002222,2]
[321900916,1712599843359,-1000.0,0.00022231,2]
[321900918,1712599843369,-1000.0,0.00022294,2]
[321900919,1712599843378,-152.73989447,0.00022334,2]
[321900921,1712599843387,-550.84003786,0.00022356,2]
[321900924,1712599843445,-449.15996214,0.00022356,2]
[321900925,1712599843455,-769.39285569,0.00022419,2]
[321900926,1712599843467,-230.60714431,0.00022419,2]
[321900927,1712599843477,-1000.0,0.00022481,2]
[321900928,1712599843486,-937.4047003,0.00022544,2]
[321900929,1712599843571,-62.5952997,0.00022544,2]
[321900930,1712599843581,-7105.10117077,0.00022604,2]
[321900931,1712599843593,-1364.8715889,0.00022604,2]
[321900932,1712599843606,-692.06319485,0.00022604,2]
[321900933,1712599843617,-1000.0,0.00022607,2]
[321900934,1712599843626,-152.73989447,0.00022618,2]
[321900935,1712599843635,-1302.75539241,0.00022626,2]
[321900936,1712599843645,-1000.0,0.00022669,2]
[321900937,1712599843655,-1000.0,0.00022732,2]
[321900938,1712599843664,-1000.0,0.00022795,2]
[321900939,1712599843674,-1000.0,0.00022857,2]
[321900941,1712599843683,-167.14,0.00022878,2]
[321900942,1712599843693,-550.45620884,0.00022884,2]
[321900943,1712599843702,-152.73989447,0.00022903,2]
[321900944,1712599843712,-1000.0,0.0002292,2]
[321900945,1712599843721,-1000.0,0.00022982,2]
[321900946,1712599843730,-600.0,0.00023,3]
[321900947,1712599843740,-150.54794341,0.00023011,2]
[321900948,1712599843749,-1000.0,0.00023045,2]
[321900949,1712599843759,-196.6596664,0.00023078,2]
[321900950,1712599843770,-1000.0,0.00023108,2]
[321900951,1712599843779,-155.78441962,0.00023147,2]
[321900952,1712599843788,-176.49461477,0.0002316,2]
[321900953,1712599843797,-392.63,0.00023163,2]
[321900954,1712599843807,-392.63,0.00023169,2]
[321900955,1712599843817,-1000.0,0.0002317,2]
[321900956,1712599843826,-392.63,0.00023175,2]
[321900957,1712599843836,-392.63,0.00023181,2]
[321900958,1712599843847,-152.73989447,0.00023187,2]
[321900959,1712599843857,-392.63,0.00023187,2]
[321900960,1712599843867,-392.63,0.00023193,2]
[321900961,1712599843876,-392.63,0.00023199,2]
[321900962,1712599843886,-392.63,0.00023206,2]
[321900963,1712599843895,-152.42546696,0.00023211,2]
[321900964,1712599843904,-392.63,0.00023212,2]
[321900965,1712599843915,-392.63,0.00023218,2]
[321900966,1712599843924,-392.63,0.00023224,2]
[321900967,1712599843934,-392.63,0.0002323,2]
[321900968,1712599843943,-246.55728168,0.0002323,2]
[321900969,1712599843953,-1000.0,0.00023233,2]
[321900970,1712599843962,-231.18304422,0.00023235,2]
[321900971,1712599843971,-392.63,0.00023236,2]
[321900972,1712599843981,-392.63,0.00023242,2]
[321900973,1712599843990,-152.42546696,0.00023247,2]
[321900974,1712599843999,-392.63,0.00023248,2]
[321900975,1712599844009,-392.63,0.00023254,2]
[321900976,1712599844018,-392.63,0.0002326,2]
[321900977,1712599844028,-166.43435672,0.00023262,2]
[321900978,1712599844037,-392.63,0.00023266,2]
[321900979,1712599844046,-392.63,0.00023272,2]
[321900980,1712599844056,-157.87760917,0.00023275,2]
[321900981,1712599844065,-392.63,0.00023279,2]
[321900982,1712599844074,-1000.0,0.00023295,2]
[321900983,1712599844083,-196.6596664,0.00023337,2]
[321900984,1712599844093,-1000.0,0.00023358,2]
[321900985,1712599844103,-151.41342262,0.00023364,2]
[321900986,1712599844113,-1000.0,0.00023421,2]
[321900987,1712599844123,-9162.03595452,0.00023456,2]
[321900988,1712599844131,-152.73989447,0.00023472,2]
[321900989,1712599844141,-1000.0,0.00023483,2]
[321900990,1712599844150,-1302.75539241,0.00023489,2]
[321900991,1712599844160,-1000.0,0.00023546,2]
[321900992,1712599844170,-1000.0,0.00023609,2]
[321900993,1712599844179,-155.78441962,0.00023613,2]
[321900994,1712599844188,-231.18304422,0.00023654,2]
[321900995,1712599844197,-308.44571376,0.00023669,2]
[321900996,1712599844207,-1000.0,0.00023671,2]
[321900997,1712599844216,-152.42546696,0.00023697,2]
[321900998,1712599844225,-151.41342262,0.00023732,2]
[321900999,1712599844235,-1000.0,0.00023734,2]
[321901000,1712599844245,-152.73989447,0.00023756,2]
[321901001,1712599844255,-156.26573491,0.00023759,2]
[321901002,1712599844264,-157.87760917,0.00023766,2]
[321901003,1712599844274,-1000.0,0.00023796,2]
[321901004,1712599844283,-169.68037056,0.00023811,2]
[321901005,1712599844293,-231.18304422,0.00023825,2]
[321901006,1712599844302,-1000.0,0.00023859,2]
[321901007,1712599844311,-550.45620884,0.00023876,2]
[321901008,1712599844321,-500.0,0.000239,8]
[321901009,1712599844331,-1000.0,0.00023922,2]
[321901010,1712599844341,-15314.15534545,0.00023947,2]
[321901011,1712599844350,-231.18304422,0.00023961,2]
[321901012,1712599844360,-1000.0,0.00023984,2]
[321901013,1712599844372,-130647.25298929,0.00024,3]
[321901014,1712599844382,-151.0,0.00024,7]
[321901015,1712599844391,-151.0,0.00024,7]
[321901016,1712599844400,-159.402562,0.00024,7]
[321901017,1712599844410,-159.402562,0.00024,7]
[321901018,1712599844419,-151.0,0.00024,7]
[321901019,1712599844429,-151.0,0.00024,7]
[321901020,1712599844438,-236.018319,0.00024,7]
[321901021,1712599844447,-151.0,0.00024,7]
[321901022,1712599844457,-151.0,0.00024,7]
[321901023,1712599844467,-151.0,0.00024,7]
[321901024,1712599844476,-151.0,0.00024,7]
[321901025,1712599844485,-151.0,0.00024,7]
[321901026,1712599844495,-151.0,0.00024,7]
[321901027,1712599844506,-151.0,0.00024,7]
[321901028,1712599844515,-151.0,0.00024,7]
[321901029,1712599844525,-151.0,0.00024,7]
[321901030,1712599844534,-151.0,0.00024,7]
[321901031,1712599844543,-151.0,0.00024,7]
[321901032,1712599844552,-170.080145,0.00024,7]
[321901033,1712599844562,-170.080145,0.00024,7]
[321901034,1712599844571,-151.0,0.00024,7]
[321901035,1712599844580,-222.073694,0.00024,7]
[321901036,1712599844589,-222.073694,0.00024,7]
[321901037,1712599844599,-151.0,0.00024,7]
[321901038,1712599844608,-151.0,0.00024,7]
[321901039,1712599844619,-406.210607,0.00024,7]
[321901040,1712599844629,-334.82049534,0.0002403,2]
[321901041,1712599844639,-152.73989447,0.00024041,2]
[321901042,1712599844651,-1000.0,0.00024047,2]
[321901043,1712599844660,-1640.60475829,0.0002411,2]
[321901044,1712599844670,-196.6596664,0.00024117,2]
[321901045,1712599844679,-1000.0,0.00024135,2]
[321901046,1712599844688,-308.44571376,0.00024137,2]
[321901047,1712599844697,-163.39883742,0.00024171,2]
[321901048,1712599844706,-334.82049534,0.00024212,2]
[321901049,1712599844716,-231.18304422,0.00024267,2]
[321901050,1712599844725,-196.6596664,0.0002427,2]
[321901051,1712599844734,-9162.03595452,0.00024308,2]
[321901052,1712599844743,-308.44571376,0.0002432,2]
[321901053,1712599844753,-152.73989447,0.00024325,2]
[321901054,1712599844762,-231.18304422,0.00024326,2]
[321901055,1712599844771,-155.0,0.00024329,2]
[321901056,1712599844780,-156.26573491,0.0002433,2]
[321901057,1712599844790,-150.0,0.00024331,2]
[321901058,1712599844800,-162.18,0.00024331,2]
[321901059,1712599844809,-300.0,0.00024335,2]
[321901060,1712599844819,-417.68,0.00024335,2]
[321901061,1712599844830,-300.0,0.00024335,2]
[321901062,1712599844841,-150.0,0.00024335,2]
[321901063,1712599844850,-324.36,0.00024335,2]
[321901064,1712599844859,-417.68,0.00024335,2]
[321901065,1712599844870,-150.0,0.00024335,2]
[321901066,1712599844880,-162.18,0.00024335,2]
[321901067,1712599844889,-300.0,0.00024335,2]
[321901068,1712599844898,-150.0,0.00024335,2]
[321901069,1712599844907,-150.0,0.00024335,2]
[321901070,1712599844918,-162.18,0.00024335,2]
[321901071,1712599844927,-162.18,0.00024335,2]
[321901072,1712599844936,-154.38,0.00024335,2]
[321901073,1712599844945,-1302.75539241,0.00024352,2]
[321901074,1712599844955,-153.80423254,0.00024419,2]
[321901075,1712599844964,-15314.15534542,0.00024451,2]
[321901076,1712599844973,-552.39,0.00024484,2]
[321901077,1712599844983,-334.82049534,0.00024487,2]
[321901078,1712599844992,-151.41342262,0.00024508,2]
[321901079,1712599845001,-220.09282212,0.00024514,2]
[321901080,1712599845011,-220.09282212,0.00024531,2]
[321901081,1712599845020,-220.09282212,0.00024546,2]
[321901082,1712599845029,-220.09282212,0.00024546,2]
[321901083,1712599845038,-151.41342262,0.0002455,2]
[321901084,1712599845047,-220.09282212,0.00024552,2]
[321901085,1712599845056,-220.09282212,0.00024558,2]
[321901086,1712599845065,-220.09282212,0.0002456,2]
[321901087,1712599845074,-220.09282212,0.00024593,2]
[321901088,1712599845084,-220.09282212,0.00024594,2]
[321901089,1712599845094,-152.73989447,0.0002461,2]
[321901090,1712599845102,-163.39883742,0.00024646,2]
[321901091,1712599845112,-246.55728168,0.00024653,2]
[321901092,1712599845122,-308.44571376,0.0002466,2]
[321901093,1712599845131,-308.44571376,0.00024726,2]
[321901094,1712599845141,-151.41342262,0.00024728,2]
[321901095,1712599845150,-246.55728168,0.00024729,2]
[321901096,1712599845159,-156.73458952,0.00024733,2]
[321901097,1712599845168,-156.26573491,0.00024734,2]
[321901098,1712599845177,-162.18,0.00024809,2]
[321901099,1712599845187,-417.68,0.00024815,2]
[321901100,1712599845196,-150.0,0.00024815,2]
[321901101,1712599845205,-417.68,0.00024815,2]
[321901102,1712599845215,-150.0,0.00024815,2]
[321901103,1712599845225,-162.18,0.00024815,2]
[321901104,1712599845234,-162.18,0.00024815,2]
[321901105,1712599845244,-150.0,0.00024815,2]
[321901106,1712599845254,-5217.63,0.00024815,2]
[321901107,1712599845263,-550.45620884,0.00024869,2]
[321901108,1712599845272,-155.00001221,0.00024885,2]
[321901109,1712599845281,-152.73989447,0.00024894,2]
[321901110,1712599845291,-196.6596664,0.00024904,2]
[321901111,1712599845300,-152.0,0.00024948,3]
[321901112,1712599845309,-15314.15534542,0.00024955,2]
[321901113,1712599845319,-308.44571376,0.00024955,2]
[321901114,1712599845328,-909.91,0.00024956,2]
[321901115,1712599845337,-835.36,0.00024956,2]
[321901116,1712599845346,-162.18,0.00024956,2]
[321901117,1712599845355,-150.0,0.00024956,2]
[321901118,1712599845364,-5800.0,0.0002499,2]
[321901119,1712599845373,-2680.4547715,0.0002499,2]
[321901120,1712599845383,-308.44571376,0.00024996,2]
[321901121,1712599845392,-5800.0,0.00024998,2]
[321901122,1712599845401,-4636.49238385,0.00024999,2]
[321901123,1712599845411,-2602.89125943,0.00025,2]
[321901124,1712599845420,-1000.0,0.00025,2]
[321901125,1712599845429,-2514.0,0.00025,2]
[321901126,1712599845438,-9189.85186986,0.00025,2]
[321901139,1712599845448,-650.0,0.00025,3]
[321901140,1712599845782,-700.0,0.00025,2]
[321901141,1712599845792,-152.32963547,0.00025037,2]
[321901142,1712599845802,-231.18304422,0.00025069,2]
[321901143,1712599845811,-166.80797733,0.00025071,2]
[321901144,1712599845820,-246.55728168,0.00025114,2]
[321901145,1712599845831,-196.6596664,0.00025126,2]
[321901146,1712599845844,-150.0,0.00025126,4]
[321901147,1712599845857,-150.0,0.00025126,4]
[321901148,1712599845869,-150.0,0.00025126,4]